bitfinex/quotes_SOLUSD_20230905
["timestamp","ask_amount","ask_price","bid_price","bid_amount"]
[1693926196954,7.768,20.081,20.074,7.771]
[1693926197343,7.768,20.082,20.074,7.771]
[1693926197545,7.767,20.083,20.074,7.771]
[1693926198448,62.767,20.084,20.074,7.771]
[1693926199458,117.536,20.084,20.069,54.809]
[1693926199662,216.619,20.084,20.071,1.48984773]
[1693926199843,216.619,20.084,20.073,7.771]
[1693926201159,216.619,20.084,20.071,25.11]
[1693926201462,216.619,20.084,20.067,0.57412882]
[1693926201648,216.619,20.084,20.067,20.0]
[1693926201844,216.619,20.084,20.071,7.772]
[1693926202372,216.619,20.084,20.068,7.773]
[1693926202552,216.619,20.084,20.067,7.773]
[1693926202553,30.12,20.08,20.067,7.773]
[1693926202756,87.666,20.076,20.065,7.774]
[1693926203265,55.0,20.075,20.065,7.774]
[1693926203452,7.771,20.073,20.065,7.774]
[1693926204159,32.879,20.073,20.06,79.69666537]
[1693926205052,32.879,20.073,20.064,7.774]
[1693926206861,32.879,20.073,20.06,79.69666537]
[1693926207165,7.773,20.068,20.06,7.776]
[1693926209065,7.773,20.068,20.055,24.86366537]
[1693926209268,55.0,20.067,20.057,7.777]
[1693926209566,62.774,20.067,20.057,7.777]
[1693926209761,64.38281545,20.073,20.058,0.62337737]
[1693926209970,7.772,20.07,20.062,32.896]
[1693926210268,7.772,20.071,20.062,32.896]
[1693926211271,7.771,20.073,20.062,32.896]
[1693926212464,55.0,20.072,20.062,32.896]
[1693926212648,62.772,20.072,20.062,32.896]
[1693926213072,7.772,20.072,20.062,32.896]
[1693926213254,55.0,20.071,20.062,7.775]
[1693926213567,7.773,20.069,20.061,7.776]
[1693926214263,55.0,20.068,20.06,7.776]
[1693926214472,55.0,20.068,20.057,7.777]
[1693926214658,7.774,20.065,20.057,7.777]
[1693926214865,80.115,20.068,20.057,7.777]
[1693926215168,7.774,20.066,20.058,0.63845002]
[1693926215357,55.0,20.065,20.056,20.0]
[1693926215671,7.775,20.063,20.056,20.0]
[1693926215875,7.775,20.063,20.055,20.0]
[1693926216956,7.775,20.063,20.051,7.779]
[1693926217155,55.0,20.062,20.051,7.779]
[1693926217362,7.777,20.059,20.051,7.779]
[1693926217557,55.0,20.062,20.051,32.914]
[1693926217864,25.121,20.063,20.051,32.914]
[1693926218066,25.121,20.063,20.052,0.66052462]
[1693926218262,7.776,20.062,20.051,7.779]
[1693926218862,55.0,20.061,20.048,7.781]
[1693926219171,87.748,20.058,20.045,14.70374064]
[1693926219476,75.0,20.057,20.045,22.48574064]
[1693926219657,7.779,20.054,20.045,22.48574064]
[1693926219860,55.245,20.06,20.045,22.48574064]
[1693926220056,25.125,20.06,20.045,22.48574064]
[1693926220261,7.777,20.059,20.045,22.48574064]
[1693926220474,7.777,20.059,20.045,121.76174064]
[1693926220877,38.86680599,20.07,20.05,30.12]
[1693926221083,25.1,20.08,20.056,87.753]
[1693926221375,54.833,20.076,20.065,7.774]
[1693926221756,39.88822355,20.079,20.065,7.774]
[1693926221957,30.12,20.09,20.066,1.78546039]
[1693926222162,37.885,20.09,20.073,32.879]
[1693926222359,99.185,20.09,20.073,32.879]
[1693926222575,40.8502994,20.09,20.074,20.0]
[1693926222779,7.764,20.092,20.078,7.769]
[1693926223071,7.764,20.092,20.079,1.67602153]
[1693926223275,7.764,20.092,20.08,7.768]
[1693926223478,22.77647305,20.094,20.08,7.768]
[1693926223771,7.764,20.093,20.08,7.768]
[1693926225262,15.01347305,20.094,20.08,7.768]
[1693926225457,22.77647305,20.094,20.08,7.768]
[1693926226775,55.0,20.093,20.08,7.768]
[1693926226976,7.764,20.092,20.08,7.768]
[1693926227277,55.0,20.091,20.08,7.768]
[1693926227485,7.765,20.089,20.078,7.769]
[1693926227664,55.0,20.088,20.078,7.769]
[1693926227980,62.765,20.088,20.078,7.769]
[1693926229581,62.766,20.088,20.078,7.769]
[1693926229973,55.0,20.088,20.078,7.769]
[1693926230281,7.765,20.089,20.078,7.769]
[1693926230578,55.0,20.088,20.078,7.769]
[1693926230774,7.766,20.087,20.078,7.769]
[1693926230966,55.0,20.086,20.078,7.769]
[1693926231167,55.0,20.086,20.074,7.77]
[1693926231168,32.86,20.085,20.074,7.77]
[1693926231367,55.0,20.084,20.073,7.771]
[1693926231569,7.768,20.081,20.072,7.771]
[1693926231881,55.0,20.08,20.072,7.771]
[1693926232072,7.769,20.079,20.072,7.771]
[1693926232273,55.0,20.078,20.071,7.772]
[1693926232479,7.77,20.077,20.071,7.772]
[1693926232680,55.0,20.078,20.071,7.772]
[1693926233366,142.657,20.078,20.064,54.824]
[1693926233680,142.657,20.078,20.065,0.61146595]
[1693926233884,20.0,20.077,20.064,7.775]
[1693926234075,87.678,20.074,20.061,25.122]
[1693926234275,55.0,20.073,20.059,7.776]
[1693926234481,32.886,20.069,20.059,32.901]
[1693926234984,7.773,20.069,20.059,32.901]
[1693926235277,55.0,20.068,20.059,32.901]
[1693926235484,62.773,20.068,20.059,32.901]
[1693926239285,7.773,20.068,20.059,32.901]
[1693926240480,25.11,20.072,20.059,32.901]
[1693926240683,25.11,20.072,20.06,0.7999808]
[1693926240884,7.772,20.07,20.063,7.775]
[1693926241087,7.772,20.07,20.062,7.775]
[1693926241294,40.61845385,20.073,20.052,14.5945137]
[1693926241588,100.66,20.1,20.063,2.04242397]
[1693926241780,54.66529644,20.094,20.075,7.77]
[1693926242091,25.083,20.093,20.075,7.77]
[1693926242480,118.5763,20.093,20.075,7.77]
[1693926242675,7.765,20.09,20.075,7.77]
[1693926243277,93.4933,20.093,20.075,7.77]
[1693926243886,151.90844383,20.1,20.076,0.53575314]
[1693926244189,7.763,20.094,20.076,55.53575314]
[1693926244386,7.763,20.094,20.076,55.0]
[1693926244595,7.763,20.094,20.075,1.11827608]
[1693926244790,7.763,20.094,20.075,21.11827608]
[1693926245092,7.763,20.094,20.08,7.768]
[1693926246792,62.764,20.093,20.08,7.768]
[1693926251199,142.592,20.093,20.065,54.82]
[1693926251524,87.624,20.086,20.066,25.116]
[1693926251682,87.624,20.086,20.069,32.885]
[1693926251683,25.095,20.084,20.069,32.885]
[1693926251879,55.0,20.083,20.069,32.885]
[1693926252079,124.1415,20.092,20.07,52.37242397]
[1693926252295,7.765,20.09,20.07,77.23608934]
[1693926252499,7.765,20.09,20.076,87.663]
[1693926252699,7.765,20.09,20.077,55.0]
[1693926252901,32.852,20.09,20.08,7.768]
[1693926253085,7.765,20.09,20.08,7.768]
[1693926254397,7.766,20.086,20.079,7.769]
[1693926254597,7.766,20.088,20.079,7.769]
[1693926255202,55.0,20.087,20.074,25.106]
[1693926255504,32.861,20.084,20.071,80.089]
[1693926255695,55.0,20.083,20.073,7.771]
[1693926255999,7.768,20.081,20.073,32.879]
[1693926256197,7.767,20.083,20.073,32.879]
[1693926256380,7.767,20.083,20.074,0.51157465]
[1693926256584,7.767,20.083,20.074,7.771]
[1693926259899,7.767,20.083,20.071,134.893]
[1693926259900,7.767,20.083,20.073,7.771]
[1693926261588,7.769,20.08,20.073,7.771]
[1693926261791,7.769,20.08,20.07,25.111]
[1693926261997,7.769,20.08,20.071,25.109]
[1693926262200,7.769,20.08,20.073,7.771]
[1693926268101,79.861,20.085,20.073,7.771]
[1693926268304,14.99252614,20.09,20.073,7.771]
[1693926268490,7.764,20.091,20.074,24.86366537]
[1693926268802,64.59271599,20.094,20.079,186.76]
[1693926268993,7.764,20.092,20.079,186.76]
[1693926270702,54.732,20.098,20.08,55.0]
[1693926270896,20.0,20.097,20.085,87.624]
[1693926271496,27.762,20.097,20.085,87.624]
[1693926271995,7.762,20.097,20.085,87.624]
[1693926272202,191.0385,20.107,20.086,20.0]
[1693926272400,7.76,20.101,20.092,7.764]
[1693926274021,25.069,20.104,20.092,32.848]
[1693926274201,7.76,20.103,20.092,32.848]
[1693926274389,32.83,20.103,20.092,32.848]
[1693926274908,7.76,20.103,20.092,32.848]
[1693926275497,7.759,20.104,20.092,32.848]
[1693926275693,7.759,20.105,20.092,32.848]
[1693926275897,25.064,20.108,20.092,32.848]
[1693926276100,7.759,20.106,20.092,32.848]
[1693926276395,32.826,20.106,20.093,55.0]
[1693926276706,32.826,20.106,20.095,7.763]
[1693926277897,32.826,20.106,20.095,32.843]
[1693926278395,7.76,20.103,20.095,7.763]
[1693926278596,7.76,20.103,20.094,7.763]
[1693926278796,7.76,20.103,20.09,105.082]
[1693926279113,7.761,20.1,20.093,7.763]
[1693926279702,7.761,20.1,20.09,79.838]
[1693926279902,7.761,20.1,20.092,7.764]
[1693926280303,32.835,20.1,20.088,25.089]
[1693926280504,7.761,20.1,20.091,7.764]
[1693926281812,7.76,20.101,20.091,7.764]
[1693926282516,7.76,20.101,20.092,7.764]
[1693926283916,25.069,20.104,20.092,7.764]
[1693926284107,55.0,20.103,20.092,7.764]
[1693926285016,7.76,20.103,20.092,7.764]
[1693926286112,98.95,20.112,20.092,7.764]
[1693926286309,20.95757602,20.109,20.093,55.0]
[1693926286507,7.759,20.105,20.097,7.762]
[1693926286719,7.759,20.105,20.096,25.079]
[1693926286720,7.759,20.105,20.096,7.762]
[1693926287017,7.758,20.107,20.091,99.048]
[1693926287222,20.0,20.106,20.097,7.762]
[1693926287407,74.703,20.109,20.097,7.762]
[1693926287718,7.759,20.105,20.097,7.762]
[1693926287914,7.759,20.106,20.097,7.762]
[1693926288708,20.0,20.109,20.097,7.762]
[1693926289041,7.758,20.106,20.097,7.762]
[1693926289416,62.759,20.105,20.097,7.762]
[1693926290412,62.759,20.105,20.096,7.762]
[1693926291728,7.759,20.105,20.096,7.762]
[1693926292031,7.758,20.107,20.096,32.841]
[1693926292211,7.758,20.108,20.097,74.732]
[1693926292408,7.758,20.108,20.099,7.761]
[1693926292607,7.758,20.108,20.097,27.761]
[1693926292924,7.758,20.108,20.098,7.761]
[1693926293713,55.0,20.107,20.098,7.761]
[1693926293917,7.759,20.106,20.098,7.761]
[1693926294928,7.758,20.107,20.098,32.838]
[1693926295229,7.758,20.108,20.098,32.838]
[1693926295429,7.758,20.108,20.098,7.761]
[1693926295627,7.758,20.108,20.098,32.838]
[1693926295821,7.757,20.109,20.098,32.838]
[1693926296022,65.6951329,20.113,20.098,32.838]
[1693926296218,7.756,20.113,20.1,50.33]
[1693926296427,7.755,20.116,20.103,87.543]
[1693926296626,25.051,20.119,20.103,87.543]
[1693926296831,20.0,20.118,20.103,87.543]
[1693926297129,27.754,20.118,20.103,87.543]
[1693926297516,0.64713777,20.117,20.103,87.543]
[1693926297716,25.048,20.121,20.104,55.0]
[1693926297925,7.753,20.122,20.105,20.0]
[1693926298132,0.6152479,20.121,20.11,87.517]
[1693926298321,7.753,20.121,20.11,7.757]
[1693926298631,106.654,20.121,20.105,7.758]
[1693926298827,1.37764418,20.12,20.106,20.0]
[1693926299031,32.809,20.116,20.106,20.0]
[1693926299231,55.0,20.115,20.106,20.0]
[1693926299418,7.756,20.113,20.105,20.0]
[1693926299617,7.755,20.114,20.105,20.0]
[1693926299914,7.755,20.114,20.105,7.759]
[1693926300119,7.755,20.114,20.106,20.0]
[1693926300833,7.755,20.114,20.105,7.759]
[1693926301013,7.755,20.114,20.106,20.0]
[1693926301535,7.755,20.115,20.106,27.758]
[1693926301732,93.3642,20.12,20.106,27.758]
[1693926301920,0.56313818,20.119,20.107,55.0]
[1693926302120,7.752,20.123,20.113,7.755]
[1693926302330,2.27614728,20.122,20.113,7.755]
[1693926302532,7.753,20.121,20.112,7.756]
[1693926302736,7.753,20.121,20.109,7.757]
[1693926303038,7.754,20.117,20.109,7.757]
[1693926303221,7.753,20.119,20.11,55.0]
[1693926303414,7.753,20.119,20.11,62.757]
[1693926303832,54.653,20.127,20.11,192.848]
[1693926304020,21.4130554,20.126,20.11,192.848]
[1693926304216,54.2060554,20.126,20.11,192.848]
[1693926304423,52.793,20.126,20.11,192.848]
[1693926304917,0.73554656,20.125,20.11,192.848]
[1693926305122,7.752,20.124,20.11,192.848]
[1693926305322,7.752,20.124,20.111,94.9245]
[1693926305520,7.752,20.124,20.114,7.755]
[1693926306928,7.751,20.125,20.114,7.755]
[1693926307332,7.751,20.125,20.112,7.756]
[1693926307832,7.751,20.125,20.113,55.0]
[1693926308134,7.751,20.125,20.116,7.754]
[1693926308338,7.751,20.126,20.116,7.754]
[1693926308539,7.751,20.125,20.117,55.0]
[1693926308731,7.751,20.125,20.117,7.754]
[1693926309230,7.751,20.125,20.116,7.754]
[1693926309734,7.751,20.125,20.117,55.0]
[1693926309926,7.751,20.125,20.117,62.754]
[1693926310731,250.0,20.149,20.117,32.807]
[1693926310937,54.625,20.137,20.123,87.46]
[1693926311129,2.90218639,20.134,20.123,87.46]
[1693926311328,10.65018639,20.134,20.123,87.46]
[1693926311531,10.65018639,20.134,20.123,7.752]
[1693926311732,10.65018639,20.134,20.127,7.75]
[1693926311940,2.90218639,20.134,20.127,7.75]
[1693926312237,7.745,20.141,20.127,7.75]
[1693926312434,2.90218639,20.14,20.127,7.75]
[1693926312640,2.90218639,20.14,20.131,87.425]
[1693926312837,2.90218639,20.14,20.131,186.277]
[1693926313047,54.607,20.144,20.131,87.425]
[1693926313341,7.745,20.141,20.131,87.425]
[1693926313539,2.90218639,20.14,20.131,87.425]
[1693926313927,10.64718639,20.14,20.131,87.425]
[1693926314538,7.745,20.14,20.131,87.425]
[1693926314840,54.578,20.155,20.132,99.86366537]
[1693926315039,1.92805534,20.154,20.141,87.382]
[1693926315240,40.64811133,20.159,20.142,55.0]
[1693926315449,0.97413105,20.158,20.147,7.743]
[1693926315641,7.739,20.158,20.147,7.743]
[1693926315944,7.738,20.158,20.147,7.743]
[1693926316244,7.738,20.158,20.144,54.605]
[1693926316545,7.738,20.158,20.146,7.743]
[1693926316732,7.738,20.158,20.147,20.0]
[1693926316931,7.738,20.158,20.147,27.742]
[1693926317332,7.738,20.158,20.147,20.0]
[1693926317542,7.738,20.158,20.144,7.743]
[1693926317740,7.738,20.158,20.145,20.0]
[1693926318449,7.738,20.158,20.144,27.744]
[1693926318639,55.0,20.157,20.144,27.744]
[1693926318946,7.74,20.154,20.144,27.744]
[1693926319251,7.74,20.154,20.144,7.744]
[1693926319846,7.74,20.154,20.145,20.0]
[1693926320147,7.74,20.155,20.145,27.743]
[1693926321336,7.74,20.155,20.145,20.0]
[1693926321642,7.74,20.155,20.139,113.59648063]
[1693926321643,62.317,20.155,20.137,2.21417347]
[1693926321850,7.741,20.152,20.141,32.767]
[1693926322227,55.0,20.151,20.141,32.767]
[1693926322427,7.741,20.153,20.141,32.767]
[1693926323647,55.0,20.152,20.141,32.767]
[1693926323851,62.741,20.152,20.141,32.767]
[1693926324239,55.0,20.152,20.141,32.767]
[1693926324548,7.741,20.152,20.141,32.767]
[1693926327250,62.741,20.152,20.141,32.768]
[1693926327737,7.741,20.152,20.141,32.768]
[1693926329049,55.0,20.151,20.141,32.768]
[1693926329353,62.741,20.151,20.141,32.768]
[1693926331250,55.0,20.151,20.141,32.768]
[1693926331455,62.741,20.151,20.141,32.768]
[1693926332657,62.741,20.151,20.141,7.745]
[1693926335758,62.741,20.151,20.14,7.745]
[1693926336059,62.741,20.151,20.138,1.73825007]
[1693926336260,62.741,20.151,20.139,7.746]
[1693926336845,161.495,20.151,20.133,54.635]
[1693926337069,120.66,20.15,20.132,7.748]
[1693926337249,87.368,20.145,20.132,7.748]
[1693926337449,55.0,20.144,20.132,7.748]
[1693926337755,32.768,20.141,20.13,25.036]
[1693926338062,32.768,20.141,20.128,1.64899556]
[1693926338260,55.0,20.14,20.128,1.64899556]
[1693926338442,7.747,20.137,20.129,7.749]
[1693926338958,55.0,20.136,20.129,7.749]
[1693926339165,7.747,20.137,20.129,7.749]
[1693926339351,27.747,20.136,20.125,7.751]
[1693926339550,55.0,20.135,20.123,25.044]
[1693926339764,7.748,20.133,20.126,7.751]
[1693926339954,55.0,20.132,20.124,7.751]
[1693926340151,55.0,20.132,20.119,98.908]
[1693926340467,7.748,20.133,20.123,7.752]
[1693926341462,7.748,20.133,20.12,25.049]
[1693926341664,55.0,20.132,20.121,10.90447167]
[1693926341865,62.749,20.132,20.121,10.90447167]
[1693926342259,87.783,20.132,20.121,7.752]
[1693926342860,87.783,20.132,20.116,54.68]
[1693926343160,87.783,20.132,20.119,7.753]
[1693926343858,7.749,20.132,20.123,7.752]
[1693926344363,7.749,20.132,20.124,1.66876612]
[1693926344757,7.749,20.132,20.124,9.41976612]
[1693926345063,7.749,20.132,20.124,7.751]
[1693926345366,25.03,20.136,20.124,7.751]
[1693926345565,7.747,20.135,20.125,1.63799169]
[1693926345778,7.747,20.135,20.127,7.75]
[1693926347366,7.747,20.135,20.126,7.751]
[1693926347865,54.617,20.141,20.126,62.406]
[1693926348057,7.746,20.138,20.126,62.406]
[1693926348261,20.0,20.137,20.126,62.406]
[1693926348561,7.747,20.136,20.126,62.406]
[1693926349165,7.747,20.136,20.126,7.751]
[1693926349546,25.023,20.141,20.127,20.0]
[1693926349761,7.745,20.14,20.131,7.749]
[1693926350352,25.021,20.143,20.131,7.749]
[1693926350664,7.741,20.151,20.132,3.97047931]
[1693926350861,7.741,20.151,20.137,87.398]
[1693926351063,25.01,20.152,20.138,3.97047931]
[1693926351258,7.742,20.15,20.142,7.744]
[1693926351453,25.01,20.152,20.142,7.744]
[1693926351652,54.58,20.154,20.142,7.744]
[1693926351653,7.741,20.151,20.142,7.744]
[1693926352261,7.741,20.153,20.142,7.744]
[1693926352568,7.741,20.152,20.142,7.744]
[1693926353453,7.741,20.152,20.139,25.025]
[1693926353663,55.0,20.151,20.141,7.745]
[1693926353966,7.742,20.148,20.138,7.746]
[1693926354162,55.0,20.147,20.137,7.746]
[1693926354368,7.744,20.144,20.132,54.638]
[1693926354573,55.0,20.143,20.132,7.748]
[1693926354875,106.553,20.14,20.127,7.75]
[1693926355059,55.0,20.139,20.125,7.751]
[1693926355261,32.778,20.135,20.123,7.752]
[1693926355569,0.97413105,20.134,20.118,54.675]
[1693926355756,7.75,20.128,20.12,7.753]
[1693926355956,7.75,20.128,20.117,25.052]
[1693926356159,54.644,20.131,20.113,15.08345751]
[1693926356371,54.644,20.131,20.12,32.802]
[1693926356588,7.75,20.129,20.12,32.802]
[1693926357350,7.75,20.129,20.121,1.53615801]
[1693926357557,55.0,20.134,20.123,7.752]
[1693926357761,7.748,20.133,20.123,32.797]
[1693926359371,7.748,20.133,20.121,25.048]
[1693926359565,7.748,20.133,20.121,7.752]
[1693926360159,7.749,20.13,20.121,7.752]
[1693926360366,87.783,20.132,20.121,7.752]
[1693926360566,7.749,20.131,20.121,7.752]
[1693926360760,7.748,20.132,20.121,7.752]
[1693926360960,7.748,20.132,20.122,1.92482244]
[1693926361162,7.748,20.132,20.125,7.751]
[1693926361564,7.748,20.132,20.122,25.046]
[1693926362463,7.748,20.133,20.124,32.795]
[1693926362670,25.029,20.137,20.124,32.795]
[1693926362970,54.623,20.138,20.124,32.795]
[1693926362971,27.747,20.136,20.124,32.795]
[1693926365274,7.746,20.138,20.125,55.0]
[1693926365472,7.746,20.138,20.128,32.788]
[1693926365973,32.773,20.138,20.128,32.788]
[1693926366977,7.746,20.138,20.128,32.788]
[1693926367862,7.745,20.14,20.128,32.788]
[1693926368063,7.746,20.139,20.128,32.788]
[1693926368258,25.02,20.144,20.128,32.788]
[1693926368463,7.744,20.145,20.134,87.413]
[1693926368976,7.744,20.145,20.134,32.78]
[1693926369476,7.745,20.141,20.134,7.748]
[1693926370579,32.768,20.141,20.128,54.648]
[1693926370768,32.768,20.141,20.129,55.0]
[1693926370974,7.745,20.141,20.131,7.748]
[1693926371471,7.744,20.144,20.131,7.748]
[1693926371673,96.3872,20.146,20.135,131.609]
[1693926371879,100.66,20.16,20.137,2.33534021]
[1693926371880,50.33,20.16,20.137,2.33534021]
[1693926372066,45.003,20.157,20.141,87.382]
[1693926372266,32.746,20.155,20.142,1.02585906]
[1693926372667,32.746,20.155,20.145,7.743]
[1693926373178,7.74,20.155,20.137,24.86366537]
[1693926373361,391.5,20.176,20.146,1.02585906]
[1693926373564,7.732,20.174,20.155,7.739]
[1693926373761,391.5,20.176,20.155,7.739]
[1693926373762,0.97413105,20.175,20.155,7.739]
[1693926374277,0.97413105,20.175,20.16,50.33]
[1693926374580,8.70613105,20.175,20.16,50.33]
[1693926374877,0.97413105,20.178,20.16,7.737]
[1693926375074,8.70513105,20.178,20.161,7.737]
[1693926375279,0.97413105,20.178,20.162,20.0]
[1693926375482,33.45702834,20.179,20.163,7.736]
[1693926375676,0.68610286,20.178,20.163,7.736]
[1693926376177,0.83096112,20.178,20.163,7.736]
[1693926376376,20.83096112,20.178,20.163,7.736]
[1693926377276,0.49774181,20.177,20.161,7.737]
[1693926377477,20.0,20.178,20.161,7.737]
[1693926377682,20.70743179,20.188,20.161,7.737]
[1693926377882,7.73,20.18,20.161,7.737]
[1693926378079,20.0,20.179,20.161,7.737]
[1693926378282,7.732,20.175,20.157,7.739]
[1693926379178,7.731,20.177,20.162,7.737]
[1693926379883,7.731,20.177,20.16,7.737]
[1693926380086,7.731,20.177,20.161,55.0]
[1693926380384,7.731,20.177,20.161,62.737]
[1693926380588,7.731,20.179,20.161,62.737]
[1693926380774,20.0,20.178,20.161,62.737]
[1693926380969,144.8758,20.19,20.161,87.60066537]
[1693926381178,20.86326969,20.189,20.162,44.86366537]
[1693926381377,7.729,20.184,20.17,7.734]
[1693926383183,7.729,20.184,20.166,44.863666]
[1693926383382,7.729,20.184,20.17,7.734]
[1693926384178,55.0,20.183,20.17,7.734]
[1693926384679,7.729,20.183,20.17,7.734]
[1693926385391,7.728,20.185,20.17,7.734]
[1693926385777,7.728,20.185,20.173,7.732]
[1693926386291,7.727,20.187,20.173,7.732]
[1693926388691,55.0,20.186,20.173,7.732]
[1693926388989,7.728,20.185,20.173,7.732]
[1693926389576,7.728,20.185,20.167,44.86366537]
[1693926389777,7.728,20.185,20.166,7.735]
[1693926390074,7.728,20.185,20.167,20.0]
[1693926390274,7.728,20.185,20.166,20.0]
[1693926390684,55.0,20.184,20.166,20.0]
[1693926390873,7.73,20.179,20.169,7.734]
[1693926391073,62.731,20.178,20.169,7.734]
[1693926393387,62.734,20.169,20.156,7.739]
[1693926393990,116.7559,20.173,20.157,24.86366537]
[1693926394288,7.73,20.179,20.161,7.737]
[1693926394472,7.731,20.178,20.162,24.86366537]
[1693926394675,7.731,20.178,20.169,7.734]
[1693926395193,7.729,20.183,20.169,7.734]
[1693926396278,55.0,20.182,20.169,7.734]
[1693926396481,7.731,20.179,20.169,7.734]
[1693926396799,55.0,20.178,20.169,7.734]
[1693926397284,62.73,20.179,20.169,32.722]
[1693926398391,87.706,20.179,20.168,7.734]
[1693926398581,87.706,20.179,20.166,7.735]
[1693926398775,87.706,20.179,20.167,20.0]
[1693926398982,62.73,20.179,20.167,52.726]
[1693926399197,55.0,20.179,20.167,52.726]
[1693926399492,32.708,20.178,20.167,27.735]
[1693926399690,55.0,20.177,20.167,27.735]
[1693926399901,62.731,20.177,20.167,27.735]
[1693926400098,62.731,20.177,20.167,20.0]
[1693926401403,62.731,20.177,20.167,27.735]
[1693926401611,62.731,20.177,20.167,20.0]
[1693926401794,62.731,20.177,20.165,20.0]
[1693926402480,7.731,20.177,20.165,20.0]
[1693926402680,7.731,20.177,20.163,20.0]
[1693926403292,7.731,20.177,20.165,7.736]
[1693926403481,7.731,20.177,20.169,7.734]
[1693926403689,55.0,20.176,20.169,7.734]
[1693926403989,62.732,20.176,20.169,7.734]
[1693926404697,62.732,20.176,20.168,7.734]
[1693926407489,130.06829523,20.182,20.168,7.734]
[1693926408404,32.703,20.181,20.163,118.69]
[1693926408703,131.31,20.181,20.168,7.734]
[1693926409084,32.71,20.177,20.168,7.734]
[1693926409308,7.732,20.175,20.168,7.734]
[1693926409992,7.732,20.175,20.164,24.994]
[1693926410196,55.0,20.174,20.165,20.0]
[1693926410404,62.733,20.174,20.166,7.735]
[1693926410805,62.733,20.174,20.167,20.0]
[1693926410992,62.733,20.174,20.167,27.735]
[1693926412298,55.0,20.174,20.167,27.735]
[1693926412518,62.732,20.174,20.167,27.735]
[1693926413723,62.732,20.174,20.161,24.997]
[1693926413910,62.732,20.174,20.164,7.736]
[1693926414403,62.732,20.174,20.163,7.736]
[1693926417199,62.732,20.174,20.162,7.737]